fUSD/lending_fUSD_20250226
["ID","MTS","AMOUNT","RATE_DAILY","PERIOD"]
[354570917,1740577881444,-500.0,0.00039999,14]
[354570918,1740577881454,-1361.16,0.00039999,14]
[354570919,1740577881463,-577.57514912,0.00039999,14]
[354570920,1740577881474,-409.74587551,0.00039999,14]
[354570921,1740577881485,-831.91897537,0.00039999,14]
[354570922,1740577881497,-500.0,0.00039999,14]
[354570923,1740577881506,-707.97663074,0.00039999,14]
[354570926,1740578530993,-184.94598664,0.0002041,2]
[354570927,1740578531015,-300.0,0.00020509,2]
[354570928,1740578531040,-465.05401336,0.0002051,2]
[354570929,1740578768266,1206.01302552,0.0002309,10]
[354570932,1740579011885,-235.5,0.0002,2]
[354570933,1740579011909,-300.0,0.00020509,2]
[354570934,1740579011932,-250.0,0.0002051,2]
[354570935,1740579011956,-3676.88798664,0.0002051,2]
[354570936,1740579011978,-175.637,0.0002051,2]
[354570937,1740579012000,-476.41606739,0.0002051,2]
[354570938,1740579012023,-250.0,0.00020945,2]
[354570939,1740579012048,-2498.96508632,0.00021055,2]
[354570940,1740579012070,-150.0,0.00021599,2]
[354570941,1740579012093,-2313.0,0.000216,2]
[354570942,1740579012118,-69673.59385965,0.000216,2]
[354570959,1740579031716,-2510.60206527,0.000216,2]
[354570960,1740579031788,-118.27043668,0.000216,2]
[354570961,1740579031800,-250.0,0.0002256,2]
[354570962,1740579031810,-202.34274554,0.00023,2]
[354570963,1740579031820,-169.84,0.00026849,2]
[354570964,1740579031830,-153.7,0.00026849,2]
[354570965,1740579031840,-200.0,0.0003,120]
[354570966,1740579031850,-204.0,0.0003365,30]
[354570967,1740579031859,-204.0,0.0003464,30]
[354570968,1740579031869,-525.04,0.00034675,2]
[354570969,1740579031878,-204.0,0.0003564,30]
[354570970,1740579031888,-208.0,0.0003564,2]
[354570971,1740579031898,-1000.0,0.000362,2]
[354570972,1740579031908,-150.41,0.00036275,2]
[354570973,1740579031917,-200.46,0.00036436,120]
[354570974,1740579031927,-204.0,0.0003663,30]
[354570975,1740579031937,-208.0,0.0003663,2]
[354570976,1740579031947,-201.26,0.00036787,120]
[354570977,1740579031957,-525.04,0.00036939,2]
[354570978,1740579031966,-227.21,0.00036963,2]
[354570979,1740579031976,-204.0,0.0003762,30]
[354570980,1740579031985,-208.0,0.0003762,2]
[354570981,1740579031995,-303.16,0.0003782,2]
[354570982,1740579032005,-150.0,0.00037973,7]
[354570983,1740579032014,-217.0,0.00038,2]
[354570984,1740579032024,-329.16887931,0.00038417,2]
[354570985,1740579032033,-1882.24153513,0.00038417,2]
[354570986,1740579032043,-2127.70860116,0.0003849,3]
[354570987,1740579032063,-44717.29817854,0.0003849,3]
[354570988,1740579032072,-1741.9,0.00038499,14]
[354570989,1740579032084,-2546.12,0.00038499,14]
[354570990,1740579032094,-937.0,0.00038499,7]
[354570991,1740579032103,-921.16,0.00038499,14]
[354570992,1740579032113,-162.029449,0.00038499,14]
[354570993,1740579032123,-1665.48,0.00038499,14]
[354570994,1740579032134,-1924.26,0.00038499,14]
[354570995,1740579032148,-542.90961,0.00038499,14]
[354570996,1740579032158,-1706.48,0.00038499,14]
[354570997,1740579032168,-1367.39,0.00038499,14]
[354570998,1740579032179,-1305.398709,0.00038499,14]
[354570999,1740579032189,-2092.61,0.00038499,2]
[354571000,1740579032199,-1628.36,0.00038499,14]
[354571001,1740579032210,-1427.72,0.00038499,14]
[354571002,1740579032220,-2164.35,0.00038499,14]
[354571003,1740579032230,-1702.04,0.00038499,14]
[354571004,1740579032239,-632.18,0.00038499,14]
[354571005,1740579032250,-2419.07,0.00038499,14]
[354571006,1740579032260,-1249.89,0.00038499,14]
[354571007,1740579032270,-2364.22,0.00038499,14]
[354571008,1740579032280,-176.86333605,0.00038499,15]
[354571009,1740579032290,-291.98258804,0.00038499,15]
[354571010,1740579032303,-1644.73,0.00038499,14]
[354571011,1740579032314,-2453.57,0.00038499,14]
[354571012,1740579032323,-2845.99,0.00038499,14]
[354571013,1740579032333,-500.0,0.00038499,14]
[354571014,1740579032343,-10194.41,0.00038499,14]
[354571015,1740579032353,-5669.11,0.00038499,14]
[354571016,1740579032363,-2373.2,0.00038499,14]
[354571017,1740579032373,-2458.21,0.00038499,14]
[354571018,1740579032382,-1214.82,0.00038499,14]
[354571019,1740579032392,-2584.33,0.00038499,14]
[354571020,1740579032402,-2136.62,0.00038499,14]
[354571021,1740579032412,-2800.15,0.00038499,14]
[354571022,1740579032422,-1891.52,0.00038499,14]
[354571023,1740579032431,-1319.55,0.00038499,14]
[354571024,1740579032442,-500.0,0.00038499,14]
[354571025,1740579032451,-4907.13,0.00038499,14]
[354571026,1740579032461,-1669.57,0.00038499,14]
[354571027,1740579032471,-1022.16,0.00038499,14]
[354571028,1740579032480,-1461.24,0.00038499,14]
[354571029,1740579032490,-2876.07,0.00038499,14]
[354571030,1740579032500,-500.0,0.00038499,14]
[354571031,1740579032510,-4053.62,0.00038499,14]
[354571032,1740579032520,-500.0,0.00038499,14]
[354571033,1740579032530,-2756.34,0.00038499,14]
[354571034,1740579032540,-8461.68,0.00038499,14]
[354571035,1740579032555,-3747.11,0.00038499,14]
[354571036,1740579032565,-1513.27,0.00038499,14]
[354571037,1740579032575,-546.54,0.00038499,14]
[354571038,1740579032584,-500.0,0.00038499,14]
[354571039,1740579032593,-1953.59,0.00038499,14]
[354571040,1740579032603,-1081.18,0.00038499,14]
[354571041,1740579032614,-610.31,0.00038499,14]
[354571042,1740579032623,-3730.81,0.00038499,14]
[354571043,1740579032633,-1118.72,0.00038499,14]
[354571044,1740579032643,-1078.68,0.00038499,14]
[354571045,1740579032653,-1235.06,0.00038499,14]
[354571046,1740579032663,-1173.72,0.00038499,14]
[354571047,1740579032672,-3356.85,0.00038499,14]
[354571048,1740579032682,-3909.95,0.00038499,14]
[354571049,1740579032692,-2504.14,0.00038499,14]
[354571050,1740579032702,-1471.03,0.00038499,14]
[354571051,1740579032711,-3435.84,0.00038499,14]
[354571052,1740579032721,-70683.7974865,0.000385,30]
[354571053,1740579032744,-4086.11267,0.000385,30]
[354571054,1740579032756,-405.40168616,0.000385,30]
[354571055,1740579032780,-112955.57048851,0.000385,30]
[354571056,1740579032792,-70472.61310644,0.000385,30]
[354571057,1740579032808,-2641.093,0.00038517,2]
[354571058,1740579032818,-697.39264937,0.00038518,2]
[354571059,1740579032828,-167.92700848,0.00038527,12]
[354571060,1740579032838,-1882.24153512,0.00038581,2]
[354571061,1740579032848,-4684.50067797,0.00038606,3]
[354571062,1740579032857,-14588.50437822,0.00038607,3]
[354571063,1740579036191,-878.01,0.00038499,14]
[354571064,1740579036203,-8395.05669698,0.00038607,3]
[354571065,1740579036224,-576.07199373,0.00038607,3]
[354571066,1740579036236,-2403.0,0.00038607,3]
[354571067,1740579036248,-1111.11,0.00038607,3]
[354571068,1740579036260,-873.3725,0.00038607,3]
[354571069,1740579036272,-3759.34505082,0.00038607,3]
[354571070,1740579036289,-19823.04683795,0.00038607,3]
[354571071,1740579036304,-28107.0040678,0.00038608,3]
[354571072,1740579036315,-37476.0054238,0.00038609,3]
[354571073,1740579036326,-34454.3850078,0.00038609,3]
[354571074,1740579036336,-18738.0027119,0.00038615,3]
[354571075,1740579036346,-13781.7540031,0.00038615,3]
[354571076,1740579036355,-18738.0027119,0.00038616,3]
[354571079,1740579036365,-124035.786028,0.00038616,3]
[354571082,1740579036375,-632.18,0.00038617,14]
[354571085,1740579036385,-82690.5240186,0.00038617,3]
[354571088,1740579036395,-226.67865175,0.00038617,2]
[354571091,1740579036405,-204.0,0.0003862,30]
[354571094,1740579036415,-208.0,0.0003862,2]
[354571097,1740579036424,-500.0,0.00038625,14]
[354571100,1740579036435,-500.0,0.00038625,14]
[354571103,1740579036444,-608.73,0.00038625,14]
[354571106,1740579036455,-618.07333249,0.00038625,14]
[354571109,1740579036465,-500.0,0.00038625,14]
[354571112,1740579036475,-500.0,0.00038625,14]
[354571114,1740579036486,-500.0,0.00038625,14]
[354571116,1740579036496,-500.0,0.00038625,14]
[354571118,1740579036506,-500.0,0.00038625,14]
[354571120,1740579036517,-500.0,0.00038625,14]
[354571122,1740579036527,-500.0,0.00038625,14]
[354571124,1740579036536,-920.77,0.00038625,14]
[354571126,1740579036546,-1222.03,0.00038625,14]
[354571128,1740579036557,-500.0,0.00038625,14]
[354571130,1740579036567,-500.0,0.00038625,14]
[354571132,1740579036577,-500.0,0.00038625,14]
[354571134,1740579036587,-500.0,0.00038625,14]
[354571136,1740579036596,-500.0,0.00038625,14]
[354571138,1740579036606,-500.0,0.00038625,14]
[354571140,1740579036615,-500.0,0.00038625,14]
[354571142,1740579036624,-765.25,0.00038625,14]
[354571144,1740579036634,-500.0,0.00038625,14]
[354571146,1740579036643,-500.0,0.00038625,14]
[354571148,1740579036652,-500.0,0.00038625,14]
[354571150,1740579036661,-500.0,0.00038625,14]
[354571152,1740579036671,-500.0,0.00038625,14]
[354571154,1740579036680,-500.0,0.00038625,14]
[354571156,1740579036690,-500.0,0.00038625,14]
[354571158,1740579036699,-500.0,0.00038625,14]
[354571161,1740579036709,-527.94,0.00038625,14]
[354571163,1740579036719,-500.0,0.00038625,14]
[354571165,1740579036729,-796.19,0.00038625,14]
[354571167,1740579036739,-500.0,0.00038625,14]
[354571169,1740579036748,-528.52,0.00038625,14]
[354571171,1740579036757,-500.0,0.00038625,14]
[354571173,1740579036766,-641.57,0.00038625,14]
[354571175,1740579036776,-830.07,0.00038625,14]
[354571177,1740579036786,-500.0,0.00038625,14]
[354571179,1740579036795,-702.66,0.00038625,14]
[354571181,1740579036807,-513.17,0.00038625,14]
[354571183,1740579036816,-612.24,0.00038625,14]
[354571185,1740579036826,-500.0,0.00038625,14]
[354571187,1740579036835,-500.0,0.00038625,14]
[354571189,1740579036845,-536.81,0.00038625,14]
[354571191,1740579036855,-988.12,0.00038625,14]
[354571193,1740579036865,-500.0,0.00038625,14]
[354571195,1740579036874,-500.0,0.00038625,14]
[354571197,1740579036885,-500.0,0.00038625,14]
[354571198,1740579036894,-500.0,0.00038625,14]
[354571199,1740579036904,-500.0,0.00038625,14]
[354571200,1740579036914,-500.0,0.00038625,14]
[354571201,1740579036924,-824.39,0.00038625,14]
[354571202,1740579036934,-598.8,0.00038625,14]
[354571203,1740579036944,-578.13,0.00038625,14]
[354571204,1740579036954,-500.0,0.00038625,14]
[354571205,1740579036965,-500.0,0.00038625,14]
[354571206,1740579036975,-500.0,0.00038625,14]
[354571207,1740579036984,-788.51,0.00038625,14]
[354571208,1740579036994,-632.18,0.00038625,14]
[354571209,1740579037004,-500.0,0.00038625,15]
[354571210,1740579037013,-500.0,0.00038625,15]
[354571211,1740579037022,-500.0,0.00038625,15]
[354571212,1740579037032,-500.0,0.00038625,15]
[354571213,1740579037042,-500.0,0.00038625,15]
[354571214,1740579037056,-500.0,0.00038625,15]
[354571215,1740579037066,-500.0,0.00038625,15]
[354571216,1740579037075,-500.0,0.00038625,15]
[354571217,1740579037084,-500.0,0.00038625,15]
[354571218,1740579037094,-228.23401307,0.00038625,15]
[354571219,1740579037103,-500.0,0.00038625,15]
[354571220,1740579037113,-250.0,0.00038625,15]
[354571221,1740579037122,-324.21462067,0.00038625,14]
[354571222,1740579037132,-516.45,0.00038625,14]
[354571223,1740579037145,-500.0,0.00038625,14]
[354571224,1740579037155,-917.08,0.00038625,14]
[354571225,1740579037164,-500.0,0.00038625,14]
[354571226,1740579037174,-500.0,0.00038625,14]
[354571227,1740579037185,-500.0,0.00038625,14]
[354571228,1740579037194,-500.0,0.00038625,14]
[354571229,1740579037204,-795.74,0.00038625,14]
[354571230,1740579037213,-500.0,0.00038625,14]
[354571231,1740579037223,-221.28890315,0.00038625,14]
[354571232,1740579037235,-500.0,0.00038625,14]
[354571233,1740579037245,-500.0,0.00038625,14]
[354571234,1740579037255,-766.94,0.00038626,14]
[354571235,1740579037265,-500.0,0.00038626,14]
[354571236,1740579037274,-500.0,0.00038626,14]
[354571237,1740579037284,-611.18194826,0.00038626,14]
[354571239,1740579037293,-526.99,0.00038626,14]
[354571240,1740579037306,-500.0,0.00038626,14]
[354571242,1740579037316,-500.0,0.00038626,14]
[354571244,1740579037326,-500.0,0.00038626,14]
[354571246,1740579037335,-500.0,0.00038626,14]
[354571248,1740579037345,-500.0,0.00038626,14]
[354571250,1740579037355,-500.0,0.00038626,14]
[354571252,1740579037365,-500.0,0.00038626,14]
[354571255,1740579037374,-500.0,0.00038626,14]
[354571257,1740579037384,-500.0,0.00038626,14]
[354571259,1740579037394,-500.0,0.00038626,14]
[354571261,1740579037404,-500.0,0.00038626,14]
[354571263,1740579037414,-500.0,0.00038626,14]
[354571265,1740579037424,-500.0,0.00038626,14]
[354571267,1740579037434,-877.52,0.00038626,14]
[354571269,1740579037444,-500.0,0.00038626,14]
[354571271,1740579037454,-500.0,0.00038626,14]
[354571273,1740579037463,-500.0,0.00038626,14]
[354571274,1740579037473,-679.36,0.00038626,14]
[354571275,1740579037483,-675.96,0.00038626,14]
[354571276,1740579037493,-500.0,0.00038626,14]
[354571277,1740579037504,-500.0,0.00038626,14]
[354571278,1740579037513,-1354.66,0.00038626,14]
[354571279,1740579037523,-500.0,0.00038626,14]
[354571281,1740579037533,-500.0,0.00038626,14]
[354571283,1740579037543,-500.0,0.00038626,14]
[354571285,1740579037557,-500.0,0.00038626,14]
[354571286,1740579037567,-800.36,0.00038626,14]
[354571287,1740579037577,-500.0,0.00038626,14]
[354571288,1740579037587,-541.12,0.00038626,14]
[354571289,1740579037597,-1236.59,0.00038626,14]
[354571290,1740579037607,-500.0,0.00038626,14]
[354571291,1740579037617,-500.0,0.00038626,14]
[354571292,1740579037628,-574.74516517,0.00038626,14]
[354571293,1740579037638,-752.34,0.00038626,14]
[354571294,1740579037648,-749.56,0.00038626,14]
[354571295,1740579037658,-500.0,0.00038626,14]
[354571296,1740579037668,-500.0,0.00038626,14]
[354571297,1740579037678,-500.0,0.00038626,14]
[354571298,1740579037687,-500.0,0.00038626,14]
[354571299,1740579037697,-743.4,0.00038626,14]
[354571300,1740579037707,-500.0,0.00038626,14]
[354571301,1740579037717,-829.28,0.00038626,14]
[354571302,1740579037727,-624.79627904,0.00038626,14]
[354571303,1740579037737,-535.43,0.00038626,14]
[354571304,1740579037746,-500.0,0.00038626,14]
[354571305,1740579037756,-500.0,0.00038626,14]
[354571306,1740579037765,-500.0,0.00038626,14]
[354571307,1740579037775,-1003.13,0.00038626,14]
[354571308,1740579037785,-500.0,0.00038626,14]
[354571309,1740579037795,-500.0,0.00038626,14]
[354571310,1740579037809,-714.62,0.00038626,14]
[354571311,1740579037820,-500.0,0.00038626,14]
[354571312,1740579037830,-500.0,0.00038626,14]
[354571313,1740579037840,-500.0,0.00038626,14]
[354571314,1740579037850,-500.0,0.00038626,14]
[354571315,1740579037860,-500.0,0.00038626,14]
[354571316,1740579037870,-500.0,0.00038626,14]
[354571317,1740579037880,-500.0,0.00038626,14]
[354571318,1740579037890,-500.0,0.00038626,14]
[354571319,1740579037900,-500.0,0.00038626,14]
[354571321,1740579037910,-719.56,0.00038626,14]
[354571322,1740579037920,-878.0,0.00038626,14]
[354571324,1740579037931,-500.0,0.00038626,14]
[354571325,1740579037941,-500.0,0.00038626,14]
[354571327,1740579037950,-997.99,0.00038626,14]
[354571328,1740579037960,-500.0,0.00038626,14]
[354571330,1740579037970,-500.0,0.00038626,14]
[354571332,1740579037983,-500.0,0.00038626,14]
[354571334,1740579037992,-596.86,0.00038626,14]
[354571337,1740579038002,-500.0,0.00038626,14]
[354571339,1740579038012,-500.0,0.00038626,14]
[354571341,1740579038022,-500.0,0.00038626,14]
[354571344,1740579038032,-585.85,0.00038626,14]
[354571346,1740579038041,-500.0,0.00038626,14]
[354571348,1740579038055,-500.0,0.00038626,14]
[354571349,1740579038064,-500.0,0.00038626,14]
[354571350,1740579038074,-1171.13,0.00038626,14]
[354571351,1740579038084,-500.0,0.00038626,14]
[354571352,1740579038093,-500.0,0.00038626,14]
[354571353,1740579038103,-1838.13,0.00038626,14]
[354571354,1740579038113,-500.0,0.00038626,14]
[354571355,1740579038122,-741.53,0.00038626,14]
[354571356,1740579038132,-500.0,0.00038626,14]
[354571357,1740579038145,-500.0,0.00038626,14]
[354571358,1740579038157,-564.06,0.00038626,14]
[354571359,1740579038167,-500.0,0.00038626,14]
[354571360,1740579038177,-509.73,0.00038626,14]
[354571361,1740579038188,-500.0,0.00038626,14]
[354571362,1740579038197,-937.22,0.00038626,14]
[354571363,1740579038208,-909.62,0.00038626,14]
[354571364,1740579038219,-830.44,0.00038626,14]
[354571365,1740579038228,-500.0,0.00038626,14]
[354571366,1740579038238,-500.0,0.00038626,14]
[354571367,1740579038248,-621.68,0.00038626,14]
[354571368,1740579038258,-500.0,0.00038626,14]
[354571369,1740579038267,-500.0,0.00038626,14]
[354571370,1740579038277,-1599.87,0.00038626,14]
[354571371,1740579038286,-500.0,0.00038626,14]
[354571372,1740579038296,-500.0,0.00038626,14]
[354571373,1740579038309,-734.05,0.00038626,14]
[354571374,1740579038319,-615.2,0.00038626,14]
[354571375,1740579038329,-665.23,0.00038626,14]
[354571376,1740579038339,-500.0,0.00038626,14]
[354571377,1740579038348,-578.81,0.00038626,14]
[354571378,1740579038358,-500.0,0.00038626,14]
[354571379,1740579038368,-500.0,0.00038626,14]
[354571380,1740579038377,-500.0,0.00038626,14]
[354571381,1740579038387,-529.08,0.00038626,14]
[354571382,1740579038396,-540.17935309,0.00038626,14]
[354571383,1740579038406,-500.0,0.00038626,14]
[354571384,1740579038416,-810.96,0.00038626,14]
[354571385,1740579038426,-500.0,0.00038626,14]
[354571386,1740579038436,-500.0,0.00038626,14]
[354571387,1740579038447,-606.51,0.00038626,14]
[354571388,1740579038456,-663.25,0.00038626,14]
[354571389,1740579038466,-711.69,0.00038626,14]
[354571390,1740579038476,-714.88,0.00038626,14]
[354571391,1740579038486,-836.72,0.00038626,14]
[354571392,1740579038496,-500.000001,0.00038626,14]
[354571393,1740579038505,-500.0,0.00038626,14]
[354571394,1740579038515,-500.0,0.00038626,14]
[354571395,1740579038524,-500.0,0.00038626,14]
[354571396,1740579038535,-500.0,0.00038626,14]
[354571397,1740579038545,-1203.4,0.00038626,14]
[354571398,1740579038557,-1188.82,0.00038626,14]
[354571399,1740579038566,-785.44,0.00038626,14]
[354571400,1740579038576,-502.7239556,0.00038626,14]
[354571401,1740579038585,-500.0,0.00038626,14]
[354571402,1740579038595,-727.14,0.00038626,14]
[354571403,1740579038605,-989.7,0.00038626,14]
[354571404,1740579038615,-500.0,0.00038626,14]
[354571405,1740579038625,-500.0,0.00038626,14]
[354571406,1740579038708,-500.0,0.00038626,14]
[354571407,1740579038718,-1157.19,0.00038626,14]
[354571408,1740579038728,-725.63,0.00038626,14]
[354571409,1740579038737,-500.0,0.00038626,14]
[354571410,1740579038747,-1380.46,0.00038626,14]
[354571411,1740579038756,-1383.0,0.00038626,14]
[354571412,1740579038766,-828.64,0.00038626,14]
[354571413,1740579038775,-700.6,0.00038626,14]
[354571414,1740579038786,-909.32,0.00038626,14]
[354571415,1740579038795,-500.0,0.00038626,14]
[354571416,1740579038807,-2364.77,0.00038626,14]
[354571417,1740579038817,-908.01,0.00038626,14]
[354571418,1740579038826,-588.95,0.00038626,14]
[354571419,1740579038836,-500.0,0.00038626,14]
[354571420,1740579038846,-637.07,0.00038626,14]
[354571421,1740579038856,-500.0,0.00038626,14]
[354571422,1740579038865,-2266.37,0.00038626,14]
[354571423,1740579038875,-500.0,0.00038626,14]
[354571424,1740579038884,-1635.54,0.00038626,14]
[354571425,1740579038893,-500.0,0.00038626,14]
[354571426,1740579038903,-500.63858269,0.00038626,14]
[354571427,1740579038912,-500.0,0.00038626,14]
[354571428,1740579038922,-500.0,0.00038626,14]
[354571429,1740579038932,-1365.36,0.00038626,14]
[354571430,1740579038942,-500.0,0.00038626,14]
[354571431,1740579038951,-500.0,0.00038626,14]
[354571432,1740579038961,-500.0,0.00038626,14]
[354571433,1740579038971,-1335.32,0.00038626,14]
[354571434,1740579038982,-517.55,0.00038626,14]
[354571435,1740579038992,-500.0,0.00038626,14]
[354571436,1740579039001,-1311.4,0.00038626,14]
[354571437,1740579039012,-500.0,0.00038626,14]
[354571438,1740579039022,-500.0,0.00038626,14]
[354571439,1740579039031,-500.0,0.00038626,14]
[354571440,1740579039041,-1772.27,0.00038626,14]
[354571441,1740579039051,-712.34,0.00038626,14]
[354571442,1740579039061,-853.47,0.00038626,14]
[354571443,1740579039070,-553.6,0.00038626,14]
[354571444,1740579039080,-2827.92,0.00038626,14]
[354571445,1740579039089,-516.94,0.00038626,14]
[354571446,1740579039099,-500.0,0.00038626,14]
[354571447,1740579039110,-500.0,0.00038626,14]
[354571448,1740579039119,-664.49,0.00038626,14]
[354571449,1740579039128,-2665.37,0.00038626,14]
[354571450,1740579039139,-979.89,0.00038626,14]
[354571451,1740579039150,-500.0,0.00038626,14]
[354571452,1740579039160,-500.0,0.00038626,14]
[354571453,1740579039170,-500.0,0.00038626,14]
[354571454,1740579039181,-2926.58,0.00038626,14]
[354571455,1740579039191,-500.0,0.00038626,14]
[354571456,1740579039201,-584.65,0.00038626,14]
[354571457,1740579039213,-2222.36,0.00038626,14]
[354571458,1740579039223,-6058.44,0.00038626,14]
[354571459,1740579039235,-327.99646017,0.00038626,14]
[354571460,1740579039245,-407.7427609,0.00038626,14]
[354571461,1740579039262,-215.3272391,0.00038626,14]
[354571462,1740579039272,-92.22992928,0.00038626,14]
[354571463,1740579039284,-407.77007072,0.00038626,14]
[354571464,1740579039294,-457.22992928,0.00038626,14]
[354571465,1740579039308,-255.14007072,0.00038626,14]
[354571466,1740579039318,-483.55650251,0.00038626,14]
[354571467,1740579039330,-307.31279,0.00038626,14]
[354571468,1740579039355,-273.02070749,0.00038626,14]
[354571469,1740579039365,-536.69520544,0.00038626,14]
[354571470,1740579039374,-632.18,0.00038626,14]
[354571471,1740579039384,-1089.38,0.00038626,14]
[354571472,1740579039394,-1240.0,0.00038626,14]
[354571473,1740579039404,-1516.22,0.00038626,14]
[354571474,1740579039414,-500.0,0.00038626,14]
[354571475,1740579039424,-588.12,0.00038626,14]
[354571476,1740579039434,-500.0,0.00038626,7]
[354571477,1740579039443,-995.99,0.00038626,14]
[354571478,1740579039453,-2222.97,0.00038626,14]
[354571479,1740579039463,-500.0,0.00038626,14]
[354571480,1740579039473,-539.43,0.00038626,14]
[354571481,1740579039482,-500.0,0.00038626,14]
[354571482,1740579039491,-1250.99,0.00038626,14]
[354571483,1740579039501,-500.0,0.00038626,14]
[354571484,1740579039511,-2764.98,0.00038626,14]
[354571485,1740579039521,-503.34104007,0.00038626,14]
[354571486,1740579039531,-6267.3,0.00038626,14]
[354571487,1740579039540,-500.0,0.00038626,14]
[354571488,1740579039551,-3072.05,0.00038626,14]
[354571489,1740579039561,-1505.44,0.00038626,14]
[354571490,1740579039570,-510.48,0.00038626,14]
[354571491,1740579039580,-500.0,0.00038626,14]
[354571492,1740579039590,-1623.58,0.00038626,14]
[354571493,1740579039600,-4044.93,0.00038626,14]
[354571494,1740579039610,-500.0,0.00038626,14]
[354571495,1740579039620,-937.49,0.00038626,14]
[354571496,1740579039630,-7622.02,0.00038626,14]
[354571498,1740579039640,-2756.53,0.00038626,14]
[354571499,1740579039650,-729.46,0.00038626,7]
[354571500,1740579039660,-559.12,0.00038626,14]
[354571502,1740579039669,-2829.82,0.00038626,14]
[354571503,1740579039678,-500.0,0.00038626,14]
[354571504,1740579039688,-500.0,0.00038626,14]
[354571505,1740579039699,-575.61,0.00038626,14]
[354571506,1740579039709,-500.0,0.00038626,14]
[354571507,1740579039720,-1282.22,0.00038626,14]
[354571508,1740579039730,-555.19,0.00038626,14]
[354571509,1740579039739,-500.0,0.00038626,14]
[354571510,1740579039748,-500.0,0.00038626,14]
[354571511,1740579039759,-1865.33,0.00038626,14]
[354571512,1740579039769,-2910.21,0.00038626,14]
[354571513,1740579039779,-8423.92,0.00038626,14]
[354571514,1740579039788,-1189.83,0.00038626,14]
[354571515,1740579039798,-500.0,0.00038626,14]
[354571516,1740579039808,-500.0,0.00038626,14]
[354571517,1740579039818,-500.0,0.00038626,14]
[354571518,1740579039827,-500.0,0.00038626,14]
[354571519,1740579039837,-500.0,0.00038626,14]
[354571520,1740579039846,-500.0,0.00038626,14]
[354571521,1740579039855,-501.63373819,0.00038626,14]
[354571522,1740579039864,-500.0,0.00038626,14]
[354571523,1740579039874,-500.0,0.00038627,14]
[354571524,1740579039883,-500.0,0.00038627,14]
[354571525,1740579039894,-1042.19,0.00038627,14]
[354571526,1740579039903,-500.0,0.00038627,14]
[354571527,1740579039912,-500.0,0.00038627,14]
[354571528,1740579039922,-677.02,0.00038627,14]
[354571529,1740579039931,-500.0,0.00038627,14]
[354571530,1740579039941,-642.94574954,0.00038627,14]
[354571531,1740579039951,-500.0,0.00038627,14]
[354571532,1740579039961,-802.45,0.00038627,14]
[354571533,1740579039971,-838.32,0.00038627,14]
[354571534,1740579039981,-565.95,0.00038627,14]
[354571535,1740579039991,-512.53,0.00038627,14]
[354571536,1740579040001,-500.0,0.00038627,14]
[354571537,1740579040010,-500.0,0.00038627,14]
[354571538,1740579040019,-500.0,0.00038627,14]
[354571539,1740579040029,-504.01250945,0.00038627,14]
[354571540,1740579040039,-1168.82,0.00038627,14]